[Event "32nd NATO Chess Championship"]
[Site "Tartu, Estonia"]
[Date "2022.07.01"]
[Round "7.43"]
[White "Steffers, Hendrik"]
[Black "Echavarria Hidalgo, Fernando"]
[Result "1/2-1/2"]
[TimeControl "90 min + 30 sec increment from move one"]
[WhiteFideId "1010743"]
[BlackFideId "2617528"]
[WhiteElo "1838"]
[BlackElo "1749"]

1. d4 {[%clk 01:30:55]} {[%emt 00:00:03]} Nf6 {[%clk 01:30:53]} {[%emt
00:00:07]} 2. Nf3 {[%clk 01:31:17]} {[%emt 00:00:08]} e6 {[%clk 01:29:52]}
{[%emt 00:01:32]} 3. e3 {[%clk 01:31:37]} {[%emt 00:00:09]} c5 {[%clk
01:29:22]} {[%emt 00:01:00]} 4. Bd3 {[%clk 01:31:44]} {[%emt 00:00:22]} Nc6
{[%clk 01:28:34]} {[%emt 00:01:19]} 5. c3 {[%clk 01:31:27]} {[%emt 00:00:47]}
cxd4 {[%clk 01:25:53]} {[%emt 00:03:11]} 6. exd4 {[%clk 01:31:22]} {[%emt
00:00:35]} Be7 {[%clk 01:24:39]} {[%emt 00:01:44]} 7. O-O {[%clk 01:29:42]}
{[%emt 00:02:10]} O-O {[%clk 01:23:02]} {[%emt 00:02:07]} 8. Nbd2 {[%clk
01:27:11]} {[%emt 00:03:00]} d5 {[%clk 01:20:19]} {[%emt 00:03:14]} 9. Re1
{[%clk 01:25:37]} {[%emt 00:02:03]} Qc7 {[%clk 01:16:53]} {[%emt 00:03:57]} 10.
Ne5 {[%clk 01:21:21]} {[%emt 00:04:45]} Nxe5 {[%clk 01:11:50]} {[%emt
00:05:34]} 11. dxe5 {[%clk 01:20:53]} {[%emt 00:00:57]} Nd7 {[%clk 01:06:35]}
{[%emt 00:05:46]} 12. f4 {[%clk 01:20:44]} {[%emt 00:00:38]} Nc5 {[%clk
00:58:47]} {[%emt 00:08:19]} 13. Bc2 {[%clk 01:14:23]} {[%emt 00:06:50]} g6
{[%clk 00:52:09]} {[%emt 00:07:09]} 14. Nf3 {[%clk 01:12:01]} {[%emt 00:02:51]}
f5 {[%clk 00:49:19]} {[%emt 00:03:22]} 15. exf6 {[%clk 01:06:17]} {[%emt
00:06:12]} Bxf6 {[%clk 00:47:56]} {[%emt 00:01:54]} 16. Ne5 {[%clk 01:01:46]}
{[%emt 00:05:01]} Qg7 {[%clk 00:42:34]} {[%emt 00:05:52]} 17. Ng4 {[%clk
00:44:14]} {[%emt 00:18:02]} Bh4 {[%clk 00:40:35]} {[%emt 00:02:28]} 18. g3
{[%clk 00:42:48]} {[%emt 00:01:56]} Be7 {[%clk 00:39:08]} {[%emt 00:01:57]} 19.
Be3 {[%clk 00:41:47]} {[%emt 00:01:31]} Nd7 {[%clk 00:37:21]} {[%emt 00:02:17]}
20. Bf2 {[%clk 00:36:52]} {[%emt 00:05:24]} h5 {[%clk 00:33:56]} {[%emt
00:03:56]} 21. Bd4 {[%clk 00:35:52]} {[%emt 00:01:29]} Bc5 {[%clk 00:31:44]}
{[%emt 00:02:43]} 22. Bxc5 {[%clk 00:33:43]} {[%emt 00:02:39]} Nxc5 {[%clk
00:31:46]} {[%emt 00:00:28]} 23. Ne5 {[%clk 00:34:00]} {[%emt 00:00:13]} Rf6
{[%clk 00:28:02]} {[%emt 00:04:14]} 24. Qd4 {[%clk 00:31:00]} {[%emt 00:03:29]}
b6 {[%clk 00:24:49]} {[%emt 00:03:44]} 25. Re3 {[%clk 00:29:59]} {[%emt
00:01:30]} Nb7 {[%clk 00:23:26]} {[%emt 00:01:54]} 26. Qd3 {[%clk 00:27:15]}
{[%emt 00:03:13]} Nc5 {[%clk 00:22:46]} {[%emt 00:01:10]} 27. Qd4 {[%clk
00:26:53]} {[%emt 00:00:53]} Nb7 {[%clk 00:22:56]} {[%emt 00:00:19]} 28. Rae1
{[%clk 00:27:01]} {[%emt 00:00:22]} Nd6 {[%clk 00:22:07]} {[%emt 00:01:20]} 29.
b3 {[%clk 00:24:37]} {[%emt 00:02:54]} Nf5 {[%clk 00:20:48]} {[%emt 00:01:50]}
30. Bxf5 {[%clk 00:24:48]} {[%emt 00:00:17]} Rxf5 {[%clk 00:19:01]} {[%emt
00:02:17]} 31. Nf3 {[%clk 00:23:57]} {[%emt 00:01:20]} Bd7 {[%clk 00:14:59]}
{[%emt 00:04:34]} 32. Qxg7+ {[%clk 00:22:31]} {[%emt 00:01:55]} Kxg7 {[%clk
00:15:14]} {[%emt 00:00:15]} 33. Nd4 {[%clk 00:22:16]} {[%emt 00:00:45]} Rf7
{[%clk 00:12:50]} {[%emt 00:02:54]} 34. Nxe6+ {[%clk 00:22:27]} {[%emt
00:00:19]} Bxe6 {[%clk 00:12:22]} {[%emt 00:00:59]} 35. Rxe6 {[%clk 00:22:45]}
{[%emt 00:00:12]} Rc8 {[%clk 00:12:23]} {[%emt 00:00:28]} 36. R1e3 {[%clk
00:21:24]} {[%emt 00:01:51]} Kh6 {[%clk 00:11:15]} {[%emt 00:01:39]} 37. Rd6
{[%clk 00:20:49]} {[%emt 00:01:04]} Rfc7 {[%clk 00:11:19]} {[%emt 00:00:27]} 38.
Rxd5 {[%clk 00:15:37]} {[%emt 00:05:41]} Rxc3 {[%clk 00:11:29]} {[%emt
00:00:20]} 39. Rxc3 {[%clk 00:15:44]} {[%emt 00:00:23]} Rxc3 {[%clk 00:11:55]}
{[%emt 00:00:05]} 40. Rd2 {[%clk 00:15:52]} {[%emt 00:00:21]} Rc1+ {[%clk
00:11:55]} {[%emt 00:00:31]} 41. Kf2 {[%clk 00:15:50]} {[%emt 00:00:30]} Rc5
{[%clk 00:11:50]} {[%emt 00:00:36]} 42. Ke3 {[%clk 00:15:37]} {[%emt 00:00:43]}
Rc7 {[%clk 00:11:33]} {[%emt 00:00:47]} 43. Ke4 {[%clk 00:14:32]} {[%emt
00:01:35]} Kg7 {[%clk 00:10:59]} {[%emt 00:01:05]} 44. Rg2 {[%clk 00:13:21]}
{[%emt 00:01:39]} Kf6 {[%clk 00:11:15]} {[%emt 00:00:15]} 45. h3 {[%clk
00:13:37]} {[%emt 00:00:14]} Rc5 {[%clk 00:11:01]} {[%emt 00:00:44]} 46. g4
{[%clk 00:13:43]} {[%emt 00:00:23]} Ra5 {[%clk 00:10:10]} {[%emt 00:01:21]} 47.
Rc2 {[%clk 00:13:41]} {[%emt 00:00:31]} hxg4 {[%clk 00:10:26]} {[%emt
00:00:15]} 48. hxg4 {[%clk 00:14:09]} {[%emt 00:00:02]} Kg7 {[%clk 00:09:42]}
{[%emt 00:01:14]} 49. Rf2 {[%clk 00:11:57]} {[%emt 00:02:42]} Rc5 {[%clk
00:09:54]} {[%emt 00:00:19]} 50. Kd4 {[%clk 00:12:02]} {[%emt 00:00:24]} Kf6
{[%clk 00:10:06]} {[%emt 00:00:18]} 51. a3 {[%clk 00:11:51]} {[%emt 00:00:42]}
Ke6 {[%clk 00:09:50]} {[%emt 00:00:46]} 52. b4 {[%clk 00:11:50]} {[%emt
00:00:30]} Rc7 {[%clk 00:09:47]} {[%emt 00:00:33]} 53. Re2+ {[%clk 00:11:20]}
{[%emt 00:01:00]} Kd6 {[%clk 00:08:44]} {[%emt 00:01:34]} 54. Re3 {[%clk
00:10:35]} {[%emt 00:01:14]} Rf7 {[%clk 00:08:40]} {[%emt 00:00:34]} 55. Rf3
{[%clk 00:10:53]} {[%emt 00:00:12]} Rc7 {[%clk 00:08:57]} {[%emt 00:00:13]} 56.
a4 {[%clk 00:09:56]} {[%emt 00:01:28]} a6 {[%clk 00:09:03]} {[%emt 00:00:25]}
57. Re3 {[%clk 00:09:24]} {[%emt 00:01:00]} Rf7 {[%clk 00:09:22]} {[%emt
00:00:11]} 58. Re4 {[%clk 00:09:38]} {[%emt 00:00:16]} Rc7 {[%clk 00:08:09]}
{[%emt 00:01:44]} 59. Re8 {[%clk 00:08:58]} {[%emt 00:01:10]} Rf7 {[%clk
00:08:08]} {[%emt 00:00:30]} 60. Ke4 {[%clk 00:09:04]} {[%emt 00:00:24]} Rc7
{[%clk 00:06:23]} {[%emt 00:02:16]} 61. Kd3 {[%clk 00:08:45]} {[%emt 00:00:48]}
Rf7 {[%clk 00:06:38]} {[%emt 00:00:15]} 62. Ke3 {[%clk 00:07:31]} {[%emt
00:01:43]} Kd7 {[%clk 00:04:27]} {[%emt 00:02:43]} 63. Ra8 {[%clk 00:07:26]}
{[%emt 00:00:33]} Kc6 {[%clk 00:04:43]} {[%emt 00:00:15]} 64. Rg8 {[%clk
00:06:04]} {[%emt 00:01:52]} Re7+ {[%clk 00:04:56]} {[%emt 00:00:18]} 65. Kf3
{[%clk 00:06:25]} {[%emt 00:00:08]} Re6 {[%clk 00:04:56]} {[%emt 00:00:30]} 66.
f5 {[%clk 00:06:31]} {[%emt 00:00:24]} gxf5 {[%clk 00:03:59]} {[%emt 00:01:28]}
67. gxf5 {[%clk 00:06:59]} {[%emt 00:00:01]} Re1 {[%clk 00:04:08]} {[%emt
00:00:21]} 68. Rg6+ {[%clk 00:07:23]} {[%emt 00:00:06]} Kc7 {[%clk 00:04:03]}
{[%emt 00:00:36]} 69. f6 {[%clk 00:05:22]} {[%emt 00:02:31]} Rf1+ {[%clk
00:04:14]} {[%emt 00:00:19]} 70. Ke4 {[%clk 00:05:23]} {[%emt 00:00:26]} Re1+
{[%clk 00:04:25]} {[%emt 00:00:21]} 71. Kd4 {[%clk 00:05:43]} {[%emt 00:00:10]}
Rd1+ {[%clk 00:04:40]} {[%emt 00:00:16]} 72. Ke5 {[%clk 00:05:47]} {[%emt
00:00:24]} Re1+ {[%clk 00:04:56]} {[%emt 00:00:15]} 73. Kd5 {[%clk 00:06:02]}
{[%emt 00:00:16]} Rd1+ {[%clk 00:04:39]} {[%emt 00:00:46]} 74. Ke6 {[%clk
00:06:31]} {[%emt 00:00:02]} Re1+ {[%clk 00:04:55]} {[%emt 00:00:14]} 75. Kd5
{[%clk 00:06:27]} {[%emt 00:00:33]} Rd1+ {[%clk 00:05:08]} {[%emt 00:00:18]} 76.
Kc4 {[%clk 00:06:56]} {[%emt 00:00:01]} Rf1 {[%clk 00:03:35]} {[%emt 00:02:02]}
77. Rg7+ {[%clk 00:06:47]} {[%emt 00:00:39]} Kd6 {[%clk 00:02:41]} {[%emt
00:01:24]} 78. f7 {[%clk 00:06:14]} {[%emt 00:01:03]} Rf4+ {[%clk 00:02:52]}
{[%emt 00:00:19]} 79. Kc3 {[%clk 00:06:37]} {[%emt 00:00:07]} Ke7 {[%clk
00:02:56]} {[%emt 00:00:26]} 80. Rg6 {[%clk 00:06:30]} {[%emt 00:00:37]} a5
{[%clk 00:02:21]} {[%emt 00:01:06]} 81. bxa5 {[%clk 00:04:24]} {[%emt
00:02:36]} bxa5 {[%clk 00:02:32]} {[%emt 00:00:19]} 82. Kb3 {[%clk 00:04:29]}
{[%emt 00:00:23]} Rxf7 {[%clk 00:02:22]} {[%emt 00:00:41]} 83. Ra6 {[%clk
00:03:52]} {[%emt 00:01:07]} 1/2-1/2